Cogmind - Beta 15 @@@ ROGUE MODE // 2025.06.28 @ 20:48:17 Player: EX-OCT Result: Destroyed by P-80 Master with Gamma Rifle Performance ------------- Evolutions (7) 3500 Regions Visited (24) 4800 Robots Destroyed (64) 320 Value Destroyed (3747) 3747 Prototype IDs (239) 4780 Alien Tech Used (0) 0 Bonus (8855) 8855 TOTAL SCORE: 26002 Bonus ------- High Alert Combat Kills 97 Follower Combat Kills 1458 Entered Garrisons 1000 Used RIF Installer 2500 Met Data Miner 300 Used Data Conduit 3000 Pursued by Intercept 500 Cogmind --------- Core Integrity 0/1300 Matter 164/300 Energy 100/100 System Corruption 8% Temperature Cool (0) Movement Core (50) Location -3/Armory Parts ------- > --- POWER (2) -------- (None) > --- PROPULSION (9) --- (None) > --- UTILITY (8) ------ (None) > --- WEAPON (2) ------- (None) > --- INVENTORY (5) ---- Micro Nuclear Core Micro Fission Core Advanced Cryofiber Web Improved Remote Datajack Great Maul Peak State ------------ > --- POWER ------------ Micro Fission Core Compact Particle Reactor > --- PROPULSION ------- Cooled VTOL Module Cooled VTOL Module Improved Surge Thruster Improved Surge Thruster Improved Surge Thruster Field Propulsion Drive Diametric Drive Diametric Drive Diametric Drive > --- UTILITY ---------- Advanced Power Amplifier Advanced Cryofiber Web Advanced Heat Sink Medium Storage Unit Structural Scanner Stasis Canceller ECM Suite Improved Propulsion Shielding > --- WEAPON ----------- Great Maul > --- INVENTORY -------- Micro Nuclear Core Micro Fission Core Diametric Drive Diametric Drive Diametric Drive Experimental Power Amplifier Advanced Cryofiber Web Stasis Canceller Improved Propulsion Shielding Improved Remote Datajack [Rating: 109] Favorites ----------- Power Micro Nuclear Core Engine Light Deuterium Engine Power Core Micro Nuclear Core Reactor Compact Particle Reactor Propulsion Cooled VTOL Module Treads Light Treads Hover Unit Gravmag System Flight Unit Cooled VTOL Module Utility Makeshift System Shield Device Structural Scanner Storage Medium Storage Unit Processor Target Analyzer Hackware Makeshift System Shield Protection Improved Propulsion Shielding Weapon Remote Datajack Ballistic Gun Assault Rifle Launcher Grenade Launcher Special Weapon Remote Datajack Impact Weapon Great Maul Slashing Weapon Makeshift Axe Special Melee Weapon Improved Datajack Build | -11 -10 -10 -10 -9 -8 -8 -8 -8 -7 -7 -7 -6 -6 -6 -6 -6 -6 -5 -5 -5 -4 -4 -3 -3 ------- Run | Yrd Mat Min Exi Min Mat Gar Mat Gar Fac Sto Gar Fac Was Fac Low Low Dat Pro Fac Gar Fac Gar Res Arm Slots Evolved 14 | . . . . . 4 . . . 2 . . 2 . . . . . . 2 . 2 . 2 . Power 1 | . . . . . . . . . . . . . . . . . . . 1 . . . . . Propulsion 7 | . . . . . 2 . . . 1 . . 1 . . . . . . 1 . 1 . 1 . Utility 6 | . . . . . 2 . . . 1 . . 1 . . . . . . . . 1 . 1 . Weapon . | . . . . . . . . . . . . . . . . . . . . . . . . . Parts Attached 131 | 4 9 . 5 . 1 7 3 22 31 2 3 4 . 14 . . . . 5 5 4 2 4 6 Power 17 | . 1 . . . . 1 1 1 4 1 1 1 . 1 . . . . 1 2 1 . 1 . Engine 3 | . 1 . . . . . 1 . 1 . . . . . . . . . . . . . . . Core 12 | . . . . . . 1 . 1 3 1 1 1 . 1 . . . . 1 2 . . . . Reactor 2 | . . . . . . . . . . . . . . . . . . . . . 1 . 1 . Propulsion 52 | 2 4 . 1 . 1 . 1 11 14 1 . 2 . 6 . . . . 2 . . 1 1 5 Treads 2 | 2 . . . . . . . . . . . . . . . . . . . . . . . . Leg . | . . . . . . . . . . . . . . . . . . . . . . . . . Wheel . | . . . . . . . . . . . . . . . . . . . . . . . . . Hover 13 | . . . . . . . . 5 8 . . . . . . . . . . . . . . . Flight 37 | . 4 . 1 . 1 . 1 6 6 1 . 2 . 6 . . . . 2 . . 1 1 5 Utility 44 | 1 3 . 1 . . 5 1 7 8 . 1 1 . 5 . . . . 2 2 3 1 2 1 Device 13 | 1 1 . . . . . 1 1 1 . . 1 . . . . . . 2 . 2 . 2 1 Storage 1 | . . . . . . . . . 1 . . . . . . . . . . . . . . . Processor 3 | . 2 . . . . . . 1 . . . . . . . . . . . . . . . . Hackware 24 | . . . 1 . . 5 . 5 5 . 1 . . 4 . . . . . 1 1 1 . . Protection 3 | . . . . . . . . . 1 . . . . 1 . . . . . 1 . . . . Artifact . | . . . . . . . . . . . . . . . . . . . . . . . . . Weapon 18 | 1 1 . 3 . . 1 . 3 5 . 1 . . 2 . . . . . 1 . . . . Energy Gun . | . . . . . . . . . . . . . . . . . . . . . . . . . Energy Cannon . | . . . . . . . . . . . . . . . . . . . . . . . . . Ballistic Gun 2 | 1 . . . . . . . 1 . . . . . . . . . . . . . . . . Ballistic Cannon . | . . . . . . . . . . . . . . . . . . . . . . . . . Launcher 1 | . . . 1 . . . . . . . . . . . . . . . . . . . . . Special Weapon 8 | . 1 . . . . . . 1 3 . 1 . . 1 . . . . . 1 . . . . Impact Weapon 2 | . . . 1 . . . . . 1 . . . . . . . . . . . . . . . Slashing Weapon 4 | . . . 1 . . . . 1 1 . . . . 1 . . . . . . . . . . Piercing Weapon . | . . . . . . . . . . . . . . . . . . . . . . . . . Special Melee Weapon 1 | . . . . . . 1 . . . . . . . . . . . . . . . . . . Unidentified Prototypes 4 | . . . . . . . . . 2 . . 1 . 1 . . . . . . . . . . Parts Lost 54 | . 3 . . . . . 1 9 12 . . . . 8 . 1 . . 1 . . . 2 17 Power 5 | . 1 . . . . . . 1 1 . . . . 1 . . . . . . . . 1 . Propulsion 29 | . 1 . . . . . . 5 7 . . . . 6 . . . . . . . . . 10 Utility 16 | . 1 . . . . . 1 1 3 . . . . . . 1 . . 1 . . . 1 7 Weapon 4 | . . . . . . . . 2 1 . . . . 1 . . . . . . . . . . Highest Loss Streak 16 | . 2 . . . . . 1 8 3 . . . . 2 . 1 . . 1 . . . 2 16 To Critical Strikes . | . . . . . . . . . . . . . . . . . . . . . . . . . Average Backups 6 | . 4 4 4 4 3 4 4 3 5 10 8 8 10 9 10 10 10 10 8 8 8 9 9 8 Power . | . . . . . . . . . . 1 . 1 2 1 1 1 1 1 1 3 2 2 1 2 Propulsion . | . 2 2 2 2 . . . . . . . . 1 . 2 2 2 2 1 1 . . . 1 Utility 3 | . . 1 1 1 1 1 1 1 2 6 6 5 5 5 4 4 4 4 3 3 3 6 6 4 Weapon 1 | . . 1 1 1 1 1 2 1 1 1 1 1 1 1 2 2 2 2 2 1 1 1 . . Tool/Special . | . . . . . . . . . . . . . . . . . . . . . . . . . Unused Backups 13 | . 1 . . . . . . . 2 . . . . . 1 . . . . . . . 1 8 Power 2 | . 1 . . . . . . . . . . . . . . . . . . . . . . 1 Propulsion 3 | . . . . . . . . . 1 . . . . . . . . . . . . . . 2 Utility 5 | . . . . . . . . . . . . . . . 1 . . . . . . . . 4 Weapon 1 | . . . . . . . . . . . . . . . . . . . . . . . 1 . Tool/Special 2 | . . . . . . . . . 1 . . . . . . . . . . . . . . 1 Average Slot Usage (%) 86 | . 73 71 78 85 71 89 100 89 79 84 95 95 100 93 93 88 86 86 92 97 91 91 90 75 Core 4 | . . . . . . 4 3 5 4 . 5 6 6 5 6 6 6 6 11 11 8 9 7 3 Hover 4 | . . . . . . . . 9 16 5 . . . . . . . . . . . . . . Flight 28 | . 21 28 28 28 35 36 36 23 8 31 38 37 40 37 40 40 40 40 40 41 40 36 39 32 Device 6 | . 17 14 14 14 9 9 15 2 . . . 4 6 2 6 6 6 6 11 12 14 19 21 22 Storage 3 | . . . . . . . . . 3 7 7 6 6 6 6 6 6 6 5 5 5 5 4 3 Hackware 20 | . . . 7 14 9 21 20 29 29 30 30 26 26 26 20 15 13 13 9 9 8 5 3 . Protection 1 | . . . . . . . . . . . . . . 1 6 6 6 6 5 5 5 5 4 2 Ballistic Gun 1 | . 14 14 2 . . . . 1 . . . . . . . . . . . . . . . . Launcher 1 | . . . 11 14 9 2 . . . . . . . . . . . . . . . . . . Special Weapon 3 | . 1 14 4 . . . . . 5 . 5 6 6 4 . . . . . 2 2 5 1 . Impact Weapon 2 | . . . 3 . . . . . . 7 7 6 6 4 . . . . . 2 2 4 4 3 Slashing Weapon 3 | . . . 6 14 9 9 9 6 6 . . . . 1 6 6 6 6 5 2 . . . . Special Melee Weapon 1 | . . . . . . 6 9 6 . . . . . . . . . . . . . . . . Peak Build Rating 109 | 4 6 5 13 13 16 26 29 43 62 50 49 58 58 66 64 64 60 60 75 80 92 90 102 109 Average Rating 44 | 2 5 5 10 13 15 22 27 29 38 44 47 56 58 56 64 61 60 60 73 77 83 81 93 80 On Entrance 45 | . 4 5 5 13 13 16 25 29 27 45 43 49 58 58 64 64 60 60 60 75 80 90 89 99 Naked Turns 8 | . . . . . . . . . . . . . . . . . . . . . . . . 8 Heaviest Build 45 | 3 7 4 7 7 7 10 11 15 28 14 22 24 24 24 24 24 24 24 32 32 38 38 44 45 Greatest Support 60 | 3 8 8 8 8 16 16 17 30 40 20 24 31 31 31 38 30 38 38 42 42 38 49 54 60 Greatest Overweight (x) 3 | . . . . . . . . 2 1 . . . . 1 . . . . . . . 1 . 3 Average Overweight (x) . | . . . . . . . . . . . . . . . . . . . . . . . . . Largest Inventory Capacity 10 | 5 5 5 5 5 5 5 5 5 10 10 10 10 10 10 10 10 10 10 10 10 10 10 10 10 Average Capacity 7 | 5 5 5 5 5 5 5 5 5 7 10 10 10 10 10 10 10 10 10 10 10 10 10 10 9 Most Carried 10 | 1 5 4 5 5 5 5 5 5 10 10 10 10 10 10 10 10 10 10 10 10 10 9 10 10 Average Carried 7 | . 4 4 4 5 4 4 5 4 6 10 8 8 10 9 10 10 10 10 8 8 9 9 9 8 Final Capacity 10 | 5 5 5 5 5 5 5 5 5 10 10 10 10 10 10 10 10 10 10 10 10 10 10 10 5 Final Carried 10 | 1 4 4 5 5 5 5 5 5 10 10 8 10 10 10 10 10 10 10 10 8 9 9 9 5 Class Distribution -------------------- 37% | Hacker-Sprinter 18% | Hacker-Mutant 11% | Machinist-Sprinter 11% | Mutant 5% | Scavenger-Mutant 5% | Scavenger-Sprinter 4% | Commander-Sprinter 4% | Commander-Mutant Dominant Class ---------------- Mutant | -10/Materials Mutant | -10/Mines Commander-Mutant | -10/Exiles Mutant | -9/Mines Mutant | -8/Materials Mutant | -8/Garrison Commander-Sprinter | -8/Materials Scavenger-Sprinter | -8/Garrison Hacker-Mutant | -7/Factory Hacker-Sprinter | -7/Storage Hacker-Sprinter | -7/Garrison Hacker-Sprinter | -6/Factory Hacker-Sprinter | -6/Waste Hacker-Sprinter | -6/Factory Hacker-Sprinter | -6/Lower Caves Hacker-Sprinter | -6/Lower Caves Hacker-Sprinter | -6/Data Miner Hacker-Sprinter | -5/Proximity Caves Machinist-Sprinter | -5/Factory Machinist-Sprinter | -5/Garrison Machinist-Sprinter | -4/Factory Machinist-Sprinter | -4/Garrison Machinist-Sprinter | -3/Research Machinist-Sprinter | -3/Armory Resources | -11 -10 -10 -10 -9 -8 -8 -8 -8 -7 -7 -7 -6 -6 -6 -6 -6 -6 -5 -5 -5 -4 -4 -3 -3 ----------- Run | Yrd Mat Min Exi Min Mat Gar Mat Gar Fac Sto Gar Fac Was Fac Low Low Dat Pro Fac Gar Fac Gar Res Arm Matter Collected 2101 | 273 179 . 63 . 20 60 25 325 425 25 . . 78 270 60 . . . 30 . . 160 82 26 Remotely . | . . . . . . . . . . . . . . . . . . . . . . . . . Salvage Created 2256 | 108 282 . 40 41 . 94 38 561 663 45 . . . 354 . . . . 30 . . . . . Parts 136 | 9 20 . . 2 . 3 2 38 48 1 . . . 10 . . . . 3 . . . . . Haulers Intercepted 1 | . . . . . . . . . 1 . . . . . . . . . . . . . . . Recyclers Shooed 1 | . 1 . . . . . . . . . . . . . . . . . . . . . . . Parts Field Recycled . | . . . . . . . . . . . . . . . . . . . . . . . . . Retrieved Matter . | . . . . . . . . . . . . . . . . . . . . . . . . . Parts Self-Destructed 1 | . . . . . . . . . . . . . . . . 1 . . . . . . . . Prevented . | . . . . . . . . . . . . . . . . . . . . . . . . . Kills | -11 -10 -10 -10 -9 -8 -8 -8 -8 -7 -7 -7 -6 -6 -6 -6 -6 -6 -5 -5 -5 -4 -4 -3 -3 ------- Run | Yrd Mat Min Exi Min Mat Gar Mat Gar Fac Sto Gar Fac Was Fac Low Low Dat Pro Fac Gar Fac Gar Res Arm Combat Hostiles Destroyed 47 | . 6 . . 1 . 2 . 15 11 2 . . . 10 . . . . . . . . . . Melee 18 | . . . . 1 . 2 . 3 6 1 . . . 5 . . . . . . . . . . Guns 20 | . 6 . . . . . . 9 5 . . . . . . . . . . . . . . . AOE 6 | . . . . . . . . 3 . . . . . 3 . . . . . . . . . . Classes Destroyed 12 | 2 2 . . . . 1 1 3 3 . . . . . . . . . . . . . . . Worker 4 | . . . . . . . . . 4 . . . . . . . . . . . . . . . Builder 3 | . . . . . . . . . 2 . . . . 1 . . . . . . . . . . Tunneler 1 | 1 . . . . . . . . . . . . . . . . . . . . . . . . Hauler 1 | . . . . . . . . . 1 . . . . . . . . . . . . . . . Recycler 2 | 1 1 . . . . . . . . . . . . . . . . . . . . . . . Watcher 5 | . . . . . . . 1 . . . . . . 3 . . . . 1 . . . . . Swarmer 18 | . 3 . . . . . . 5 2 2 . . . 6 . . . . . . . . . . Grunt 12 | . 3 . . 1 . 1 . 3 3 . . . . 1 . . . . . . . . . . Duelist 2 | . . . . . . . . 2 . . . . . . . . . . . . . . . . Sentry 5 | . . . . . . . . 3 1 . . . . 1 . . . . . . . . . . Hunter 4 | . . . . . . 1 . . 2 . . . . 1 . . . . . . . . . . Programmer 7 | . . . . . . . . 3 3 . . . . 1 . . . . . . . . . . Best Kill Streak 6 | 2 3 . . 1 . 1 1 5 4 2 . . . 6 . . . . 1 . . . . . Combat Bots Only 6 | . 3 . . 1 . 1 . 5 3 2 . . . 6 . . . . . . . . . . Max Kills in Single Turn 3 | 1 1 . . 1 . 1 1 1 1 1 . . . 3 . . . . 1 . . . . . Gunslinging . | . . . . . . . . . . . . . . . . . . . . . . . . . Exploded 3 | . . . . . . . . 1 . . . . . 3 . . . . . . . . . . Melee 1 | . . . . 1 . 1 . 1 1 1 . . . 1 . . . . . . . . . . Uniques/NPCs Destroyed . | . . . . . . . . . . . . . . . . . . . . . . . . . Combat | -11 -10 -10 -10 -9 -8 -8 -8 -8 -7 -7 -7 -6 -6 -6 -6 -6 -6 -5 -5 -5 -4 -4 -3 -3 -------- Run | Yrd Mat Min Exi Min Mat Gar Mat Gar Fac Sto Gar Fac Was Fac Low Low Dat Pro Fac Gar Fac Gar Res Arm Hostile Shots Fired 611 | . 41 . . 2 . 4 2 60 194 22 2 . . 83 12 6 2 1 13 4 . 14 14 135 Missed 263 | . 16 . . 2 . 2 1 20 80 10 1 . . 39 5 2 2 1 10 4 . 6 8 54 Hits 348 | . 25 . . . . 2 1 40 114 12 1 . . 44 7 4 . . 3 . . 8 6 81 Melee 11 | . . . . . . . . . . . . . . . . . . . . . . 4 . 7 Projectile 337 | . 25 . . . . 2 1 40 114 12 1 . . 44 7 4 . . 3 . . 4 6 74 AOE 9 | . . . . . . . . . 1 . . . . 5 . . . . . . . . . 3 Critical Strikes 10 | . . . . . . . . . . . . . . . . . . . . . . 1 . 9 Actively Blocked 1 | . . . . . . . . . . . . . . . . . . . . . . 1 . . Part Disruptions 3 | . . . . . . . . 1 . . . . . . . . . . . . . . . 2 Damage Taken 5691 | . 310 . . . . 29 12 600 1135 128 10 . . 926 68 69 . . 64 . . 67 77 2196 Core 2333 | . 69 . . . . 29 . 144 359 51 . . . 306 6 18 . . 21 . . 15 . 1315 Absorbed by Shields 310 | . . . . . . . . 12 298 . . . . . . . . . . . . . . . Redirected to Shielding 171 | . . . . . . . . . . . . . . 57 12 . . . . . . 32 . 70 Regen/Repaired (Parts) 235 | . . . . . . . . . 84 . . . . 76 . . . . . . . . . 75 Core Remaining (%) 76 | 100 . . . 72 . . . 68 . . 41 . . . . . . 61 . 97 . 98 . . Volleys Fired 79 | 11 40 . 1 . . . . 5 4 . . . . 18 . . . . . . . . . . Largest 2 | 1 2 . 1 . . . . 1 1 . . . . 1 . . . . . . . . . . Hottest 120 | 20 120 . 100 . . . . 30 5 . . . . 5 . . . . . . . . . . Shots Fired 136 | 11 41 . 1 . . . . 35 30 . . . . 18 . . . . . . . . . . Gun 106 | 11 39 . . . . . . 30 26 . . . . . . . . . . . . . . . Cannon . | . . . . . . . . . . . . . . . . . . . . . . . . . Launcher 5 | . . . . . . . . 5 . . . . . . . . . . . . . . . . Special 25 | . 2 . 1 . . . . . 4 . . . . 18 . . . . . . . . . . Kinetic 106 | 11 39 . . . . . . 30 26 . . . . . . . . . . . . . . . Thermal 3 | . 2 . 1 . . . . . . . . . . . . . . . . . . . . . Explosive 5 | . . . . . . . . 5 . . . . . . . . . . . . . . . . Electromagnetic . | . . . . . . . . . . . . . . . . . . . . . . . . . Robot Hit Streak 13 | 2 13 . . . . . . 6 13 . . . . 6 . . . . . . . . . . Robot Miss Streak 3 | 2 2 . . . . . . 3 1 . . . . 2 . . . . . . . . . . Penetration Max . | . . . . . . . . . . . . . . . . . . . . . . . . . Secondary Targets . | . . . . . . . . . . . . . . . . . . . . . . . . . Autonomous 57 | . . . . . . . . 30 27 . . . . . . . . . . . . . . . Shots Hit Robots 176 | 6 31 . 1 1 1 9 1 35 54 2 . . . 33 . . 1 . 1 . . . . . Core Hits 69 | 3 12 . . 1 . 2 1 24 18 1 . . . 6 . . . . 1 . . . . . Critical Kills 2 | . . . . . . . . . 1 . . . . 1 . . . . . . . . . . Critical Parts Destroyed 7 | . . . . . . . . 2 . . . . . 5 . . . . . . . . . . Critical Strikes 12 | . . . . . . . . 2 4 . . . . 6 . . . . . . . . . . Destroy 3 | . . . . . . . . 2 1 . . . . . . . . . . . . . . . Smash 6 | . . . . . . . . . . . . . . 6 . . . . . . . . . . Sever 3 | . . . . . . . . . 3 . . . . . . . . . . . . . . . Melee Attacks 361 | . . . 19 2 5 43 4 61 78 7 11 . . 83 2 1 5 4 11 6 1 3 10 5 Impact 135 | . . . 5 . . . . . 10 7 11 . . 78 . . . . . 5 1 3 10 5 Slashing 213 | . . . 14 2 5 36 4 55 68 . . . . 5 2 1 5 4 11 1 . . . . Piercing . | . . . . . . . . . . . . . . . . . . . . . . . . . Sneak Attacks 20 | . . . . . 1 3 1 2 9 . . . . 3 . . 1 . . . . . . . Combat Hostiles 7 | . . . . . . 3 . 2 . . . . . 2 . . . . . . . . . . Follow-up Attacks . | . . . . . . . . . . . . . . . . . . . . . . . . . Damage Inflicted 6588 | 79 393 . 111 31 76 177 66 1345 2175 117 . . . 1795 . . 122 . 81 . . . . 20 Guns 1995 | 79 393 . . . . . . 765 758 . . . . . . . . . . . . . . . Cannons . | . . . . . . . . . . . . . . . . . . . . . . . . . Explosions 775 | . . . . . . . . 348 . . . . . 427 . . . . . . . . . . Melee 3798 | . . . 111 31 76 177 66 232 1417 117 . . . 1368 . . 122 . 81 . . . . . Ramming 20 | . . . . . . . . . . . . . . . . . . . . . . . . 20 Kinetic 1995 | 79 393 . . . . . . 765 758 . . . . . . . . . . . . . . . Thermal 427 | . . . . . . . . . . . . . . 427 . . . . . . . . . . Explosive 348 | . . . . . . . . 348 . . . . . . . . . . . . . . . . Electromagnetic . | . . . . . . . . . . . . . . . . . . . . . . . . . Impact 1533 | . . . 111 . . . . . . 117 . . . 1305 . . . . . . . . . . Slashing 2265 | . . . . 31 76 177 66 232 1417 . . . . 63 . . 122 . 81 . . . . . Piercing . | . . . . . . . . . . . . . . . . . . . . . . . . . Highest Corruption 8 | . . . . . . . . . 2 2 2 . . 3 3 3 3 3 . . . . . 8 Average Corruption 2 | . . . . . . . . . 1 2 2 . . 2 3 3 3 3 . . . . . 3 Corruption Purged . | . . . . . . . . . . . . . . . . . . . . . . . . . Corruption Blocked . | . . . . . . . . . . . . . . . . . . . . . . . . . Effects 29 | . . . . . . . . . 13 1 1 . . 4 3 2 2 1 . . . . . 2 Message Errors 6 | . . . . . . . . . 4 1 . . . . . 1 . . . . . . . . Matter Fused 6 | . . . . . . . . . 5 . . . . . 1 . . . . . . . . . Heat Flow Errors 6 | . . . . . . . . . 2 . . . . 3 1 . . . . . . . . . Energy Discharges 4 | . . . . . . . . . 2 . . . . . . . 1 1 . . . . . . Parts Rejected 3 | . . . . . . . . . . . . . . . . 1 . . . . . . . 2 Parts Fused 1 | . . . . . . . . . . . . . . . 1 . . . . . . . . . Data Loss (minor) 1 | . . . . . . . . . . . 1 . . . . . . . . . . . . . Data Loss (major) 1 | . . . . . . . . . . . . . . . . . 1 . . . . . . . Alerts 1 | . . . . . . . . . . . . . . 1 . . . . . . . . . . Overload Shots . | . . . . . . . . . . . . . . . . . . . . . . . . . Overflow Damage 927 | . . . 62 . 36 . . 31 156 30 . . . 612 . . . . . . . . . . Projectiles . | . . . . . . . . . . . . . . . . . . . . . . . . . Explosions 123 | . . . . . . . . 31 . . . . . 92 . . . . . . . . . . Melee 804 | . . . 62 . 36 . . . 156 30 . . . 520 . . . . . . . . . . Knockbacks 7 | . . . . . . . . . . 1 . . . 6 . . . . . . . . . . Impact 7 | . . . . . . . . . . 1 . . . 6 . . . . . . . . . . Kinetic . | . . . . . . . . . . . . . . . . . . . . . . . . . Secondary . | . . . . . . . . . . . . . . . . . . . . . . . . . Self-Inflicted Damage 166 | . . . . . . . . 30 . . . . . 128 . . . . . . . . . 8 Shots 3 | . . . . . . . . 1 . . . . . 2 . . . . . . . . . . Rammed 7 | . . . . . . . . . . . . . . . . . . . . . . . . 7 Targets Rammed 7 | . . . . . . . . . . . . . . . . . . . . . . . . 7 Kicked . | . . . . . . . . . . . . . . . . . . . . . . . . . Crushed . | . . . . . . . . . . . . . . . . . . . . . . . . . Highest Temperature 253 | . 13 . 12 . . . . 2 237 . . 48 . 211 56 16 171 60 109 253 4 10 . 18 Average Temperature 33 | . 4 . 9 . . . . 2 93 . . 21 . 39 17 5 17 23 41 83 4 10 . 8 Received Heat Transfer 772 | . 153 . . . . 18 . 90 247 27 . . . 99 21 18 . . 9 . . 9 9 72 Siege Activations . | . . . . . . . . . . . . . . . . . . . . . . . . . Martial Activations . | . . . . . . . . . . . . . . . . . . . . . . . . . Shielding Activations . | . . . . . . . . . . . . . . . . . . . . . . . . . Robots Disrupted . | . . . . . . . . . . . . . . . . . . . . . . . . . Combat Hostiles . | . . . . . . . . . . . . . . . . . . . . . . . . . Robots Corrupted 3 | . . . . . . . . . . 1 . . . 2 . . . . . . . . . . Combat Hostiles 3 | . . . . . . . . . . 1 . . . 2 . . . . . . . . . . Parts Fried 16 | . . . . . . . . . . 2 . . . 14 . . . . . . . . . . Impact Corruptions 16 | . . . 1 . . . . . . 2 . . . 13 . . . . . . . . . . Robots Melted . | . . . . . . . . . . . . . . . . . . . . . . . . . Combat Hostiles . | . . . . . . . . . . . . . . . . . . . . . . . . . Parts Melted . | . . . . . . . . . . . . . . . . . . . . . . . . . Heat Transferred 200 | . . . . . . . . . . . . . . 200 . . . . . . . . . . Parts Sabotaged 21 | . . . . . . . . . . . . . . . . . . . . . . 13 . 8 Parts Stolen . | . . . . . . . . . . . . . . . . . . . . . . . . . Parts Stripped . | . . . . . . . . . . . . . . . . . . . . . . . . . Power Chain Reactions . | . . . . . . . . . . . . . . . . . . . . . . . . . Alert | -11 -10 -10 -10 -9 -8 -8 -8 -8 -7 -7 -7 -6 -6 -6 -6 -6 -6 -5 -5 -5 -4 -4 -3 -3 ------- Run | Yrd Mat Min Exi Min Mat Gar Mat Gar Fac Sto Gar Fac Was Fac Low Low Dat Pro Fac Gar Fac Gar Res Arm Maximum Alert Level 3 | . . . . . . 1 . 2 2 1 1 . . 3 . . . . 1 1 1 2 1 1 Low Security (%) 48 | 100 100 100 . 100 100 71 100 8 55 73 . 100 100 34 . . . . 73 14 55 25 . 44 Level 1 26 | . . . . . . 28 . 31 26 26 100 . . 14 . . . . 26 85 44 60 100 55 Level 2 24 | . . . . . . . . 60 17 . . . . 48 . . . . . . . 13 . . Level 3 . | . . . . . . . . . . . . . . 2 . . . . . . . . . . Level 4 . | . . . . . . . . . . . . . . . . . . . . . . . . . Level 5 . | . . . . . . . . . . . . . . . . . . . . . . . . . High Security . | . . . . . . . . . . . . . . . . . . . . . . . . . Max Security . | . . . . . . . . . . . . . . . . . . . . . . . . . Peak Influence 727 | 5 95 33 . 33 41 229 131 656 463 327 306 160 49 727 . . . . 262 377 228 541 321 242 Initial 338 | . . 33 . . 8 . 111 7 338 113 212 160 49 . . . . . 2 176 205 107 303 167 Average 235 | 1 45 23 . 16 5 125 68 429 210 164 285 154 23 313 . . . . 85 271 191 241 296 189 Influence Increases 6398 | 10 225 . 5 61 64 229 90 889 929 264 94 . . 1992 45 195 . 45 327 216 29 454 86 149 Destroy 0b10 Robot/C 1960 | . 120 . . 40 20 60 20 400 380 40 . . . 720 . . . . . . . 160 . . Destroy 0b10 Robot/NC 125 | 10 5 . 5 5 . . 5 . 40 . . . . 50 . . . . 5 . . . . . Destroy Leader 390 | . 20 . . 10 10 10 12 30 132 10 . . . 154 . . . . 2 . . . . . Allied During Kill 710 | . . . . 6 . 16 9 61 39 . . . . 563 . . . . . . . 16 . . Trap Triggered on 0b10 10 | . . . . . . . . . . 10 . . . . . . . . . . . . . . Successful Hack 363 | . 19 . . . . . 13 . 91 20 14 . . 130 . . . . 32 . 27 . 6 11 Disable Machine 219 | . 15 . . . . . 15 . . . . . . 165 . . . . . . . . . 24 Anti-Garrison Action 550 | . . . . . . 100 . 200 . . 50 . . . . . . . . 100 . 100 . . Destroy Structure 445 | . 1 . . . 4 43 1 123 52 4 30 . . 120 . . . . 18 11 2 10 20 6 Partial Spotted 453 | . . . . . . . 15 15 30 60 . . . 15 . . . . 30 105 . 75 24 84 Lose Combat Pursuer 1173 | . 45 . . . 30 . . 60 165 120 . . . 75 45 195 . 45 240 . . 93 36 24 Influence Decreases 6332 | 10 140 72 18 38 87 . 308 254 1326 186 115 166 140 1905 83 50 194 40 80 76 267 67 308 402 Entered New Map 1938 | . . 52 13 . 15 . 118 4 308 136 115 146 91 . 33 10 194 . 3 76 187 47 238 152 Time Decay 1753 | 10 110 20 5 18 31 . 60 . 498 40 . 20 49 515 40 30 . 40 57 . 80 . 50 80 Lost Part 540 | . 30 . . . . . 10 90 120 . . . . 80 . 10 . . 10 . . . 20 170 Lost Ally 781 | . . . . 20 41 . . 160 100 10 . . . 410 10 . . . 10 . . 20 . . Purge Threat 1320 | . . . . . . . 120 . 300 . . . . 900 . . . . . . . . . . Squads Dispatched 40 | . . 1 . . 2 . 2 . 13 . . . . 8 . 1 . . 3 . 2 . 2 6 Investigation 13 | . . . . . . . 2 . 5 . . . . 1 . . . . 2 . 2 . . 1 Extermination 8 | . . . . . . . . . 3 . . . . 2 . . . . 1 . . . 1 1 Reinforcement 12 | . . . . . 2 . . . 5 . . . . 3 . . . . . . . . 1 1 Assault 2 | . . 1 . . . . . . . . . . . . . 1 . . . . . . . . Garrison 2 | . . . . . . . . . . . . . . 2 . . . . . . . . . . Intercept 3 | . . . . . . . . . . . . . . . . . . . . . . . . 3 Searches Triggered . | . . . . . . . . . . . . . . . . . . . . . . . . . Construction Impeded 3 | . . . . . 1 . . . 1 . . . . 1 . . . . . . . . . . Haulers Reinforced 1 | . . . . . . . . . 1 . . . . . . . . . . . . . . . Active Scanning Responses . | . . . . . . . . . . . . . . . . . . . . . . . . . Cargo Convoy Interrupts . | . . . . . . . . . . . . . . . . . . . . . . . . . Stealth | -11 -10 -10 -10 -9 -8 -8 -8 -8 -7 -7 -7 -6 -6 -6 -6 -6 -6 -5 -5 -5 -4 -4 -3 -3 --------- Run | Yrd Mat Min Exi Min Mat Gar Mat Gar Fac Sto Gar Fac Was Fac Low Low Dat Pro Fac Gar Fac Gar Res Arm Distress Signals 14 | . 2 . . . . . . . 4 1 . . . 3 . . . 1 . . . . 1 2 Communications Jammed . | . . . . . . . . . . . . . . . . . . . . . . . . . Distress Signals . | . . . . . . . . . . . . . . . . . . . . . . . . . Times Spotted 305 | . 13 . . 2 3 6 6 26 48 18 1 . . 54 6 12 4 3 22 3 . 11 8 59 Peak Tracking Total 16 | . 5 . . 2 4 3 3 7 8 14 1 . . 5 6 14 4 3 16 5 . 7 6 16 Tactical Retreats 34 | . 2 . . . 1 . . 3 4 2 . . . 4 2 3 . 2 3 . . 1 2 5 Traps | -11 -10 -10 -10 -9 -8 -8 -8 -8 -7 -7 -7 -6 -6 -6 -6 -6 -6 -5 -5 -5 -4 -4 -3 -3 ------- Run | Yrd Mat Min Exi Min Mat Gar Mat Gar Fac Sto Gar Fac Was Fac Low Low Dat Pro Fac Gar Fac Gar Res Arm Traps Triggered 6 | . . . . . . . . 3 1 . . 1 . . . . . . . . . . . 1 Indirectly . | . . . . . . . . . . . . . . . . . . . . . . . . . Trap Hack Attempts . | . . . . . . . . . . . . . . . . . . . . . . . . . Triggered . | . . . . . . . . . . . . . . . . . . . . . . . . . Disarmed 21 | . . . . . . . . . 17 . . . . . . . . . 4 . . . . . Reprogrammed 4 | . . . . . . . . . . 4 . . . . . . . . . . . . . . Reused 1 | . . . . . . . . . . 1 . . . . . . . . . . . . . . Traps Extracted . | . . . . . . . . . . . . . . . . . . . . . . . . . Installed . | . . . . . . . . . . . . . . . . . . . . . . . . . Triggered 1 | . . . . . . . . . . 1 . . . . . . . . . . . . . . Machines | -11 -10 -10 -10 -9 -8 -8 -8 -8 -7 -7 -7 -6 -6 -6 -6 -6 -6 -5 -5 -5 -4 -4 -3 -3 ---------- Run | Yrd Mat Min Exi Min Mat Gar Mat Gar Fac Sto Gar Fac Was Fac Low Low Dat Pro Fac Gar Fac Gar Res Arm Machines Disabled 25 | . 1 . 1 . . 2 1 4 . . 1 . . 11 . . . . . 2 . . . 2 Max in Single Turn 3 | . 1 . 1 . . 1 1 1 . . 1 . . 3 . . . . . 1 . . . 1 Garrison Access 3 | . . . . . . . . . . . . . . 3 . . . . . . . . . . Garrison Relay 9 | . . . . . . 2 . 4 . . 1 . . . . . . . . 1 . 1 . . Machines Repaired . | . . . . . . . . . . . . . . . . . . . . . . . . . Machines Dismantled 6 | . . . . . . . . . . . . . . 6 . . . . . . . . . . Machines Sabotaged . | . . . . . . . . . . . . . . . . . . . . . . . . . Overloaded Fab Kills . | . . . . . . . . . . . . . . . . . . . . . . . . . Hacking | -11 -10 -10 -10 -9 -8 -8 -8 -8 -7 -7 -7 -6 -6 -6 -6 -6 -6 -5 -5 -5 -4 -4 -3 -3 --------- Run | Yrd Mat Min Exi Min Mat Gar Mat Gar Fac Sto Gar Fac Was Fac Low Low Dat Pro Fac Gar Fac Gar Res Arm Machines Accessed 104 | . 5 . 2 . 3 1 8 1 25 7 1 1 . 25 2 . 4 . 8 2 3 . 2 4 Terminals 65 | . 5 . . . 2 1 7 1 12 6 1 . . 16 . . . . 7 2 . . 2 3 Fabricators 11 | . . . . . . . . . 6 . . . . 3 . . . . . . 2 . . . Repair Stations 6 | . . . . . . . . . 3 . . . . 2 . . . . . . . . . 1 Recycling Units 1 | . . . . . . . . . . . . . . 1 . . . . . . . . . . Scanalyzers 3 | . . . . . . . . . 2 . . 1 . . . . . . . . . . . . Garrison Access 10 | . . . . . 1 . 1 . 2 1 . . . 3 . . . . 1 . 1 . . . Total Hacks 420 | . 15 . 5 . 8 1 30 3 103 42 6 1 . 110 2 . 31 . 31 7 11 . 5 9 Successful 264 | . 7 . 5 . 5 . 17 . 63 30 2 . . 74 2 . 31 . 17 1 7 . 1 2 Failed 156 | . 8 . . . 3 1 13 3 40 12 4 1 . 36 . . . . 14 6 4 . 4 7 Catastrophic 19 | . 1 . . . . 1 1 1 5 . . . . 4 . . . . 2 2 . . 1 1 Database Lockouts . | . . . . . . . . . . . . . . . . . . . . . . . . . Manual 245 | . 16 . 1 . 7 . 28 . 49 36 2 . . 68 . . . . 22 5 5 . 2 4 Terminals 304 | . 15 . . . 7 1 27 3 72 36 6 . . 91 . . . . 28 7 . . 5 6 Fabricators 32 | . . . . . . . . . 12 . . . . 11 . . . . . . 9 . . . Repair Stations 16 | . . . . . . . . . 9 . . . . 4 . . . . . . . . . 3 Recycling Units 1 | . . . . . . . . . . . . . . 1 . . . . . . . . . . Scanalyzers 5 | . . . . . . . . . 4 . . 1 . . . . . . . . . . . . Garrison Access 24 | . . . . . 1 . 3 . 6 6 . . . 3 . . . . 3 . 2 . . . Terminal Hacks 115 | . 1 . 5 . . . 5 . 23 15 2 . . 23 2 . 31 . 5 1 . . 1 1 Record 16 | . . . 4 . . . . . . . . . . . . . 11 . 1 . . . . . Part Schematic 19 | . . . . . . . . . 2 . . . . 4 . . 12 . 1 . . . . . Robot Schematic 6 | . . . . . . . . . 1 . . . . . . . 5 . . . . . . . Robot Analysis 10 | . 1 . . . . . 3 . . 4 . . . 2 . . . . . . . . . . Prototype ID Bank 7 | . . . . . . . . . 2 1 . . . 1 . . 3 . . . . . . . Open Door 4 | . . . . . . . . . . 2 . . . . 2 . . . . . . . . . Branch Access Points 2 | . . . . . . . . . . . . . . 1 . . . . . . . . 1 . Emergency Access Points 4 | . . . . . . . . . 1 . 1 . . 1 . . . . . 1 . . . . Machine Index 1 | . . . . . . . . . 1 . . . . . . . . . . . . . . . Terminal Index 4 | . . . . . . . . . 2 1 . . . 1 . . . . . . . . . . Fabricator Index 3 | . . . . . . . . . 2 . . . . 1 . . . . . . . . . . Garrison Index 2 | . . . . . . . . . 1 1 . . . . . . . . . . . . . . Unreport Threat 8 | . . . . . . . 1 . 2 . . . . 5 . . . . . . . . . . Locate Traps 1 | . . . . . . . . . . 1 . . . . . . . . . . . . . . Disarm Traps 5 | . . . . . . . . . 4 . . . . . . . . . 1 . . . . . Reprogram Traps 1 | . . . . . . . . . . 1 . . . . . . . . . . . . . . Hauler Manifests 2 | . . . . . . . . . 1 . . . . . . . . . . . . . . 1 Registered Components 3 | . . . . . . . . . . 1 . . . 1 . . . . 1 . . . . . Registered Prototypes 1 | . . . . . . . . . 1 . . . . . . . . . . . . . . . Zone Layout 14 | . . . . . . . 1 . 3 3 . . . 6 . . . . 1 . . . . . Garrison Registry 1 | . . . . . . . . . . . 1 . . . . . . . . . . . . . Proto ID Catalog 1 | . . . 1 . . . . . . . . . . . . . . . . . . . . . Fabricator Hacks 20 | . . . . . . . . . 7 . . . . 9 . . . . . . 4 . . . Network Status 4 | . . . . . . . . . 2 . . . . 2 . . . . . . . . . . Load Schematic 10 | . . . . . . . . . 4 . . . . 4 . . . . . . 2 . . . Build 6 | . . . . . . . . . 1 . . . . 3 . . . . . . 2 . . . Repair Station Hacks 5 | . . . . . . . . . 3 . . . . 2 . . . . . . . . . . Scan Component 3 | . . . . . . . . . 2 . . . . 1 . . . . . . . . . . Repair 2 | . . . . . . . . . 1 . . . . 1 . . . . . . . . . . Recycling Unit Hacks . | . . . . . . . . . . . . . . . . . . . . . . . . . Scanalyzer 3 | . . . . . . . . . 3 . . . . . . . . . . . . . . . Insert Component 1 | . . . . . . . . . 1 . . . . . . . . . . . . . . . Analyze 2 | . . . . . . . . . 2 . . . . . . . . . . . . . . . Garrison Access Hacks 10 | . . . . . 1 . 1 . 2 1 . . . 3 . . . . 1 . 1 . . . Unlock Access 7 | . . . . . 1 . 1 . 2 1 . . . . . . . . 1 . 1 . . . Seal Access 3 | . . . . . . . . . . . . . . 3 . . . . . . . . . . Unauthorized Hacks 111 | . 6 . . . 4 . 11 . 25 14 . . . 37 . . . . 11 . 2 . . 1 Terminals 95 | . 6 . . . 4 . 10 . 20 12 . . . 32 . . . . 11 . . . . . Track 18 | . . . . . . . . . 4 3 . . . 9 . . . . 2 . . . . . Assimilate 13 | . 1 . . . . . 2 . 1 2 . . . 6 . . . . 1 . . . . . Botnet 35 | . 2 . . . 2 . 2 . 9 3 . . . 11 . . . . 6 . . . . . Operators 4 | . . . . . . . . . 1 1 . . . 1 . . . . 1 . . . . . Skim 24 | . 3 . . . 2 . 5 . 5 3 . . . 5 . . . . 1 . . . . . Search 1 | . . . . . . . 1 . . . . . . . . . . . . . . . . . Fabricators 7 | . . . . . . . . . 4 . . . . 2 . . . . . . 1 . . . Liberate 2 | . . . . . . . . . . . . . . 2 . . . . . . . . . . Recompile 5 | . . . . . . . . . 4 . . . . . . . . . . . 1 . . . Repair Stations 3 | . . . . . . . . . . . . . . 2 . . . . . . . . . 1 Mechanics 2 | . . . . . . . . . . . . . . 2 . . . . . . . . . . Patch 1 | . . . . . . . . . . . . . . . . . . . . . . . . 1 Recycling Units 1 | . . . . . . . . . . . . . . 1 . . . . . . . . . . Recyclers 1 | . . . . . . . . . . . . . . 1 . . . . . . . . . . Scanalyzers . | . . . . . . . . . . . . . . . . . . . . . . . . . Garrison Access 5 | . . . . . . . 1 . 1 2 . . . . . . . . . . 1 . . . Reprogram 4 | . . . . . . . 1 . 1 1 . . . . . . . . . . 1 . . . Intercept 1 | . . . . . . . . . . 1 . . . . . . . . . . . . . . Data Cores Recovered . | . . . . . . . . . . . . . . . . . . . . . . . . . Used . | . . . . . . . . . . . . . . . . . . . . . . . . . Hacking Detections 68 | . 5 . . . 2 1 7 1 15 2 1 1 . 14 . . . . 8 2 3 . 2 4 Full Trace Events 3 | . . . . . . . . . . . . . . . . . . . 2 1 . . . . Feedback Events 1 | . . . . . . . . . . . . . . . . . . . 1 . . . . . Hackware Fried 1 | . . . . . . . . . . . . . . . . . . . 1 . . . . . Feedback Blocked . | . . . . . . . . . . . . . . . . . . . . . . . . . Robot Schematics Acquired 6 | . . . . . . . . . 1 . . . . . . . 5 . . . . . . . Robots Built . | . . . . . . . . . . . . . . . . . . . . . . . . . Authchips . | . . . . . . . . . . . . . . . . . . . . . . . . . Time . | . . . . . . . . . . . . . . . . . . . . . . . . . Total Robot Build Rating . | . . . . . . . . . . . . . . . . . . . . . . . . . Part Schematics Acquired 20 | . . . . . . . . . 3 . . . . 4 . . 12 . 1 . . . . . Parts Built 11 | . . . . . . . . . 1 . . . . 6 . . . . . . 4 . . . Authchips 5 | . . . . . . . . . 1 . . . . 3 . . . . . . 1 . . . Time 312 | . . . . . . . . . 53 . . . . 189 . . . . . . 70 . . . Total Part Build Rating 60 | . . . . . . . . . 6 . . . . 30 . . . . . . 24 . . . Parts Repaired 2 | . . . . . . . . . 1 . . . . 1 . . . . . . . . . . Time 105 | . . . . . . . . . 70 . . . . 35 . . . . . . . . . . Parts Recycled . | . . . . . . . . . . . . . . . . . . . . . . . . . Recycled Matter . | . . . . . . . . . . . . . . . . . . . . . . . . . Retrieved Matter . | . . . . . . . . . . . . . . . . . . . . . . . . . Retrieved Components . | . . . . . . . . . . . . . . . . . . . . . . . . . Parts Scanalyzed 1 | . . . . . . . . . 1 . . . . . . . . . . . . . . . Part Schematics Acquired 1 | . . . . . . . . . 1 . . . . . . . . . . . . . . . Parts Damaged 1 | . . . . . . . . . 1 . . . . . . . . . . . . . . . Bothacking | -11 -10 -10 -10 -9 -8 -8 -8 -8 -7 -7 -7 -6 -6 -6 -6 -6 -6 -5 -5 -5 -4 -4 -3 -3 ------------ Run | Yrd Mat Min Exi Min Mat Gar Mat Gar Fac Sto Gar Fac Was Fac Low Low Dat Pro Fac Gar Fac Gar Res Arm Used RIF Installer 5 | . . . . . . 1 . 1 . . 1 . . . . . . . . 1 . 1 . . Command Fork 1 | . . . . . . . . . . . 1 . . . . . . . . . . . . . Threat Obfuscator 1 | . . . . . . . . . . . . . . . . . . . . . . 1 . . Robot Detection 1 | . . . . . . . . . . . . . . . . . . . . 1 . . . . Patrol Navigation 1 | . . . . . . . . 1 . . . . . . . . . . . . . . . . Robots Hacked 23 | . . . . . . 6 . 5 1 . . . . 11 . . . . . . . . . . Non-combat 6 | . . . . . . . . . . . . . . 6 . . . . . . . . . . Combat 17 | . . . . . . 6 . 5 1 . . . . 5 . . . . . . . . . . Robot Hacks Applied 24 | . . . . . . 6 . 5 1 . . . . 12 . . . . . . . . . . deconstruct_machine 1 | . . . . . . . . . . . . . . 1 . . . . . . . . . . ignore_repairs 3 | . . . . . . . . . . . . . . 3 . . . . . . . . . . purge_threat 1 | . . . . . . . . . . . . . . 1 . . . . . . . . . . scatter_targeting 2 | . . . . . . . . . . . . . . 2 . . . . . . . . . . amplify_resonance 1 | . . . . . . . . . . . . . . 1 . . . . . . . . . . reboot_system 1 | . . . . . . 1 . . . . . . . . . . . . . . . . . . overwrite_iff 3 | . . . . . . . . 2 . . . . . 1 . . . . . . . . . . formatsys_low 2 | . . . . . . . . . . . . . . 2 . . . . . . . . . . formatsys_high 10 | . . . . . . 5 . 3 1 . . . . 1 . . . . . . . . . . Relay Couplers Released 36 | . . . . . . 10 . 16 . . 3 . . . . . . . . 3 . 4 . . Machine Destruction 36 | . . . . . . 10 . 16 . . 3 . . . . . . . . 3 . 4 . . Attached 12 | . . . . . . 5 . 3 . . 1 . . 1 . . . . . 1 . 1 . . Fabnet Peak Effective % . | . . . . . . . . . . . . . . . . . . . . . . . . . Robots Rewired 5 | . . . 3 . . . . . 2 . . . . . . . . . . . . . . . Allies Hacked 5 | . . . . . . . . 2 3 . . . . . . . . . . . . . . . Hacks Repelled 1 | . . . . . . . . 1 . . . . . . . . . . . . . . . . Allies | -11 -10 -10 -10 -9 -8 -8 -8 -8 -7 -7 -7 -6 -6 -6 -6 -6 -6 -5 -5 -5 -4 -4 -3 -3 -------- Run | Yrd Mat Min Exi Min Mat Gar Mat Gar Fac Sto Gar Fac Was Fac Low Low Dat Pro Fac Gar Fac Gar Res Arm Total Allies 58 | . 1 . 3 . . 5 3 5 6 1 . . 20 11 . . . . 1 . 2 . . . Largest Group 20 | . 1 1 4 4 3 5 7 10 3 1 . . 20 20 1 . . . 1 . 2 2 . . Highest-Rated Group 779 | . 10 7 44 44 36 79 104 152 82 10 . . 779 779 10 . . . 26 . 112 112 . . Highest-Rated Ally 56 | . 10 7 21 21 21 16 21 21 40 10 . . 50 50 10 . . . 26 . 56 56 . . Total Orders . | . . . . . . . . . . . . . . . . . . . . . . . . . Ally Attacks 334 | . . . . 4 6 7 13 37 66 . . . . 185 . . . . . . . 16 . . Total Damage 6913 | . . . . 79 80 114 150 590 986 . . . . 4521 . . . . . . . 393 . . Kills 63 | . . . . 2 1 1 1 5 9 . . . . 36 . . . . . . . 8 . . Allies Corrupted . | . . . . . . . . . . . . . . . . . . . . . . . . . Allies Melted 1 | . . . . . . . . . . . . . . 1 . . . . . . . . . . Intel | -11 -10 -10 -10 -9 -8 -8 -8 -8 -7 -7 -7 -6 -6 -6 -6 -6 -6 -5 -5 -5 -4 -4 -3 -3 ------- Run | Yrd Mat Min Exi Min Mat Gar Mat Gar Fac Sto Gar Fac Was Fac Low Low Dat Pro Fac Gar Fac Gar Res Arm Active Infowar (turns) 2867 | 5 245 57 355 43 98 291 126 111 68 . . 37 121 651 98 79 57 115 122 13 . . 28 147 Sensors 140 | . . . . . . . 89 51 . . . . . . . . . . . . . . . . Structural 2780 | . 169 57 355 43 98 291 126 111 68 . . 37 121 651 98 79 57 115 122 13 . . 28 141 Seismic 150 | 5 145 . . . . . . . . . . . . . . . . . . . . . . . ECM 93 | . . . . . . . . . . . . . . . . . . . . . . . . 93 Robot Analysis Total 161 | . 1 . . . . . 3 . . 4 . . . 2 . . 151 . . . . . . . Derelict Logs Recovered 2 | . . . . . . . . . . . . . . . . 2 . . . . . . . . Drone Launches . | . . . . . . . . . . . . . . . . . . . . . . . . . Drone Recoveries . | . . . . . . . . . . . . . . . . . . . . . . . . . Exploration | -11 -10 -10 -10 -9 -8 -8 -8 -8 -7 -7 -7 -6 -6 -6 -6 -6 -6 -5 -5 -5 -4 -4 -3 -3 ------------- Run | Yrd Mat Min Exi Min Mat Gar Mat Gar Fac Sto Gar Fac Was Fac Low Low Dat Pro Fac Gar Fac Gar Res Arm Turns Passed 6232 | 52 245 57 355 43 98 291 126 650 1320 88 139 40 121 1447 98 79 57 115 122 61 178 165 116 169 Spaces Moved 11294 | 46 348 117 606 49 132 313 296 1076 1892 213 195 128 232 2467 283 295 109 304 557 193 245 193 368 637 Core 163 | 46 36 . . . . . . 13 60 . . . . . . . . . . . . . . 8 Treads . | . . . . . . . . . . . . . . . . . . . . . . . . . Legs . | . . . . . . . . . . . . . . . . . . . . . . . . . Wheels . | . . . . . . . . . . . . . . . . . . . . . . . . . Hover 1440 | . . . . . . . . 290 1150 . . . . . . . . . . . . . . . Flight 9691 | . 312 117 606 49 132 313 296 773 682 213 195 128 232 2467 283 295 109 304 557 193 245 193 368 629 Fastest Speed 5 | 50 37 37 37 37 31 31 29 29 26 26 23 20 21 19 6 20 6 6 5 5 12 5 6 5 Average Speed 27 | 50 38 37 37 37 35 34 30 37 43 28 24 20 21 21 19 20 17 19 13 12 12 25 11 13 Slowest Speed 200 | 50 50 37 37 37 37 37 31 200 120 29 29 23 21 92 20 22 20 20 14 14 14 102 13 185 Overloaded Moves 150 | . . . . . . . . . 8 . . . . 13 4 . 17 7 7 36 . 24 14 20 Propulsion Burnouts . | . . . . . . . . . . . . . . . . . . . . . . . . . Robots Hopped 72 | . 3 . 2 . . . . 2 2 10 . . . 13 . . 1 . 16 1 3 5 . 14 Potential Cave-ins . | . . . . . . . . . . . . . . . . . . . . . . . . . Cave-ins Triggered . | . . . . . . . . . . . . . . . . . . . . . . . . . Exploration Rate (%) 43 | 3 65 22 96 15 22 40 18 85 59 51 39 6 90 55 51 58 77 52 27 42 8 32 14 55 Regions Visited 24 Branch Regions 9 Pre-discovered Areas 33 | . . 1 1 . . . . . 1 . . . . 2 . 1 27 . . . . . . . Known Exits Taken 9 | . . . . . 1 . 1 . 1 1 . . . 1 . . . 1 1 . 1 . 1 . Unknown Exits Taken 8 | 1 1 1 1 1 . . . . . . . . . . 1 1 1 . . . . . . . Scrap Searched 2 | . . . . . . . . . . . . . . . 2 . . . . . . . . . Spaces Dug 177 | . 1 . . . 4 18 1 17 37 4 5 . . 57 2 1 . 4 9 3 1 . 10 3 Terrain Destroyed 263 | . 1 . . . 4 18 1 35 47 4 5 . . 115 2 1 . 4 9 3 1 . 10 3 Melee 176 | . . . . . 4 18 1 17 37 4 5 . . 57 2 1 . 4 9 3 1 . 10 3 Projectile 13 | . 1 . . . . . . 2 10 . . . . . . . . . . . . . . . AOE 74 | . . . . . . . . 16 . . . . . 58 . . . . . . . . . . Terrain Rammed . | . . . . . . . . . . . . . . . . . . . . . . . . . Walls Destroyed . | . . . . . . . . . . . . . . . . . . . . . . . . . Machines Disabled . | . . . . . . . . . . . . . . . . . . . . . . . . . Actions | -11 -10 -10 -10 -9 -8 -8 -8 -8 -7 -7 -7 -6 -6 -6 -6 -6 -6 -5 -5 -5 -4 -4 -3 -3 --------- Run | Yrd Mat Min Exi Min Mat Gar Mat Gar Fac Sto Gar Fac Was Fac Low Low Dat Pro Fac Gar Fac Gar Res Arm Total 13515 | 61 410 130 711 71 177 457 327 1233 2253 215 264 141 303 3081 320 309 134 350 563 216 387 290 420 692 Wait 1403 | . 6 14 70 21 37 86 23 17 175 2 55 4 72 431 34 13 22 43 1 10 120 85 29 33 Move 11141 | 45 342 116 601 48 131 312 295 1072 1887 195 194 128 231 2442 282 294 106 303 526 190 238 185 367 611 Hop 59 | . 2 . 2 . . . . 1 2 7 . . . 11 . . 1 . 15 1 3 2 . 12 Pick Up 63 | 1 5 . 1 . 2 2 . 8 17 . . 3 . 7 1 . . . 4 . 5 . 3 4 Fast Attach 107 | 4 7 . 2 . . 5 1 11 29 2 1 2 . 8 . 1 . . 1 1 5 14 3 10 Attach 44 | . 1 . 1 . 2 1 . 7 8 . 2 1 . 7 . . . . 3 3 3 . 2 3 Detach 7 | . . . . . . . . . . . . . . 1 . . . . . 1 3 . 1 1 Swap 40 | . 1 . 2 . . 1 2 11 4 . . 1 . 11 . . . . 1 2 3 . 1 . Drop 82 | . 6 . 2 . . 2 2 12 27 2 1 2 . 5 1 . . . 1 2 6 1 4 6 Fire 79 | 11 40 . 1 . . . . 5 4 . . . . 18 . . . . . . . . . . Melee 361 | . . . 19 2 5 43 4 61 78 7 11 . . 83 2 1 5 4 11 6 1 3 10 5 Ram 7 | . . . . . . . . . . . . . . . . . . . . . . . . 7 Kick . | . . . . . . . . . . . . . . . . . . . . . . . . . Crush . | . . . . . . . . . . . . . . . . . . . . . . . . . Escape Stasis 43 | . . . . . . . . 25 18 . . . . . . . . . . . . . . . Rewire 25 | . . . 10 . . 5 . 3 4 . . . . 3 . . . . . . . . . . Trap . | . . . . . . . . . . . . . . . . . . . . . . . . . Miscellaneous 54 | . . . . . . . . . . . . . . 54 . . . . . . . . . . Route ------- -11/Scrapyard -10/Materials (discovered 2 exits: [*Mat] / [*Min]) -10/Mines (discovered 2 exits: *Exi / [Sub]) -10/Exiles -9/Mines -8/Materials (discovered 2 exits: *Fac / Gar) -8/Garrison -8/Materials -8/Garrison (discovered 3 exits: *Fac x3) -7/Factory (discovered 8 exits: *Fac x2 / *Sto x2 / *Low x2 / Gar / Gar) -7/Storage -7/Garrison (discovered 3 exits: *Fac x3) -6/Factory -6/Waste -6/Factory (discovered 6 exits: *Fac x4 / *Low x2) -6/Lower Caves -6/Lower Caves (discovered 2 exits: *Fac / *Dat) -6/Data Miner -5/Proximity Caves -5/Factory (discovered 5 exits: *Fac / *Upp x2 / Ext / Gar) -5/Garrison -4/Factory -4/Garrison -3/Research (discovered 3 exits: *Arm / Qua x2) -3/Armory History --------- Turn | Location | Event 6 | -11/Scrapyard | Discovered new exit (range 15) 53 | -11/Scrapyard | Entered Materials 273 | -10/Materials | Discovered new exit (range 16) 294 | -10/Materials | Discovered new exit (range 6) 298 | -10/Materials | Entered Mines 298 | -10/Mines | Accompanied by 1 ally 308 | -10/Mines | Learned location of Storage (-7) 316 | -10/Mines | Met a Derelict testing a Signal Generator 323 | -10/Mines | Discovered new exit (range 15) 340 | -10/Mines | Deemed a non-threat by the Exiles lab entrance 340 | -10/Mines | Discovered new exit (range 5) 355 | -10/Mines | Entered Exiles 355 | -10/Exiles | Found Exiles lab destroyed 355 | -10/Exiles | Accompanied by 1 ally 408 | -10/Exiles | Opened EX-Vault 413 | -10/Exiles | Found AWS/Gauss 450 | -10/Exiles | Learned location of Zion (-7) 451 | -10/Exiles | Build established: Mutant 636 | -10/Exiles | Discovered new exit (range 14) 710 | -10/Exiles | Entered Mines 710 | -9/Mines | Accompanied by 4 allies 714 | -9/Mines | Discovered new exit (range 13) 715 | -9/Mines | Found a hidden stash of uninstalled traps 753 | -9/Mines | Entered Materials 753 | -8/Materials | Accompanied by 3 allies 753 | -8/Materials | Evolved 4 slots: Propulsion x2, Utility x2 801 | -8/Materials | Discovered new exit (range 14) 812 | -8/Materials | Identified exit to Garrison 851 | -8/Materials | Entered Garrison 909 | -8/Garrison | Installed Relay Interface Framework 925 | -8/Garrison | Garrison Relay disabled 936 | -8/Garrison | Triggered checkpoint 989 | -8/Garrison | Triggered checkpoint 1055 | -8/Garrison | Triggered checkpoint 1060 | -8/Garrison | Garrison Relay disabled 1072 | -8/Garrison | Discovered new exit (range 10) 1142 | -8/Garrison | Entered Materials 1142 | -8/Materials | Accompanied by 5 allies 1170 | -8/Materials | Identified exit to Garrison 1268 | -8/Materials | Entered Garrison 1268 | -8/Garrison | Accompanied by 7 allies 1292 | -8/Garrison | Triggered checkpoint 1317 | -8/Garrison | Garrison Relay disabled 1325 | -8/Garrison | Garrison Relay disabled 1352 | -8/Garrison | Build established: Commander-Sprinter 1353 | -8/Garrison | Triggered checkpoint 1353 | -8/Garrison | Triggered checkpoint 1353 | -8/Garrison | P-60 Hacker assimilated allied Trooper 3f 1364 | -8/Garrison | Triggered checkpoint 1376 | -8/Garrison | P-60 Hacker assimilated allied Trooper 3c 1419 | -8/Garrison | Lost 8 parts (1p4n1u2w) 1428 | -8/Garrison | Lost 9 allies 1542 | -8/Garrison | Triggered checkpoint 1572 | -8/Garrison | Garrison Relay disabled 1592 | -8/Garrison | Discovered new exit (range 10) 1651 | -8/Garrison | Spotted B-75 Beast 1758 | -8/Garrison | Discovered new exit (range 10) 1776 | -8/Garrison | Spotted B-75 Beast 1842 | -8/Garrison | Discovered new exit (range 15) 1848 | -8/Garrison | Expanded RIF knowledge: Patrol Navigation 1864 | -8/Garrison | Garrison Relay disabled 1918 | -8/Garrison | Entered Factory 1918 | -7/Factory | Evolved 2 slots: Propulsion x1, Utility x1 2157 | -7/Factory | Lost 3 parts (3n) 2251 | -7/Factory | Identified exit to Garrison 2290 | -7/Factory | Discovered new exit (range 11) 2482 | -7/Factory | Build established: Hacker-Mutant 2547 | -7/Factory | Discovered new exit (range 5) 2687 | -7/Factory | Repaired Cld. Airjet 2810 | -7/Factory | P-60 Hacker assimilated hostile G-47 Trooper 2891 | -7/Factory | Fabricated Adv. Hacking Suite (x1) 3052 | -7/Factory | Identified exit to Lower Caves 3082 | -7/Factory | AWS/Gauss suddenly broke down 3112 | -7/Factory | Identified exit to Storage 3112 | -7/Factory | Identified exit to Factory 3137 | -7/Factory | Identified exit to Garrison 3235 | -7/Factory | Learned 4 Lower Caves zone layouts 3238 | -7/Factory | Entered Storage 3239 | -7/Storage | Core integrity fell below 50% 3325 | -7/Storage | Identified exit to Garrison 3326 | -7/Storage | Entered Garrison 3350 | -7/Garrison | Discovered exit to Factory (range 66) 3350 | -7/Garrison | Discovered exit to Factory (range 58) 3350 | -7/Garrison | Discovered exit to Factory (range 53) 3353 | -7/Garrison | Garrison Relay disabled 3380 | -7/Garrison | Build established: Hacker-Sprinter 3460 | -7/Garrison | Expanded RIF knowledge: Command Fork 3465 | -7/Garrison | Entered Factory 3465 | -6/Factory | Evolved 2 slots: Propulsion x1, Utility x1 3505 | -6/Factory | Sucked down chute 3505 | -6/Factory | Entered Waste 3506 | -6/Waste | Joined by Warlord forces that had cleared the area 3551 | -6/Waste | Discovered new exit (range 12) 3626 | -6/Waste | Entered Factory 3626 | -6/Factory | Accompanied by 20 allies 3664 | -6/Factory | Garrison activated, responded to threat 3714 | -6/Factory | Repaired Cld. VTOL Module 3722 | -6/Factory | Lost 5 allies 3873 | -6/Factory | Spotted B-75 Beast 3919 | -6/Factory | Allies destroyed B-75 Beast 4211 | -6/Factory | Learned location of 1 exit from Proximity Caves 4301 | -6/Factory | Learned location of 1 exit from Extension 4328 | -6/Factory | Learned location of Warlord (-5) 4344 | -6/Factory | Learned Extension security intel 4352 | -6/Factory | Identified exit to Factory 4359 | -6/Factory | Learned location of Extension (-5) 4376 | -6/Factory | Learned location of 2 exits from Proximity Caves 4434 | -6/Factory | Discovered exit to Factory (range 5) 4538 | -6/Factory | Identified exit to Lower Caves 4540 | -6/Factory | Lost 11 allies 4633 | -6/Factory | Lost 3 allies 4709 | -6/Factory | Fabricated Imp. Surge Thruster (x2) 4741 | -6/Factory | Garrison activated, responded to threat 4889 | -6/Factory | Discovered exit to Factory (range 12) 5003 | -6/Factory | Fabricated Imp. Surge Thruster (x2) 5054 | -6/Factory | Fabricated Imp. Surge Thruster (x2) 5073 | -6/Factory | Entered Lower Caves 5073 | -6/Lower Caves | Accompanied by 1 ally 5089 | -6/Lower Caves | Attracted the attention of an 0b10 checkpoint 5158 | -6/Lower Caves | Discovered new exit (range 11) 5171 | -6/Lower Caves | Entered another Lower Caves area 5179 | -6/Lower Caves | Spotted B-75 Beast 5190 | -6/Lower Caves | Discovered exit to Factory (range 15) 5192 | -6/Lower Caves | Attracted the attention of an 0b10 outpost 5198 | -6/Lower Caves | Learned Factory non-interactive machine intel 5248 | -6/Lower Caves | Discovered new exit (range 10) 5250 | -6/Lower Caves | Entered Data Miner 5250 | -6/Data Miner | Discovered new exit (range 6) 5254 | -6/Data Miner | Met Data Miner 5258 | -6/Data Miner | Learned location of Section 7 (-2) 5258 | -6/Data Miner | Acquired the access code to Warlord's prototype stash 5262 | -6/Data Miner | Received God Mode back door access code from Data Miner 5282 | -6/Data Miner | Interfaced with the Data Conduit 5307 | -6/Data Miner | Entered Proximity Caves 5422 | -5/Proximity Caves | Entered Factory 5422 | -5/Factory | Evolved 2 slots: Power x1, Propulsion x1 5423 | -5/Factory | Identified exit to Upper Caves 5423 | -5/Factory | Identified exit to Extension 5424 | -5/Factory | Loaded intel: 260 machine locations 5425 | -5/Factory | Loaded intel: 204 non-interactive machine locations 5509 | -5/Factory | System Shield fried by hacking feedback 5542 | -5/Factory | Discovered new exit (range 5) 5544 | -5/Factory | Identified exit to Garrison 5544 | -5/Factory | Entered Garrison 5545 | -5/Garrison | Loaded intel: 31 machine locations 5551 | -5/Garrison | Expanded RIF knowledge: Robot Detection 5553 | -5/Garrison | Garrison Relay disabled 5570 | -5/Garrison | Triggered checkpoint 5584 | -5/Garrison | Spotted B-75 Beast 5590 | -5/Garrison | Discovered new exit (range 15) 5605 | -5/Garrison | Entered Factory 5605 | -4/Factory | Evolved 2 slots: Propulsion x1, Utility x1 5606 | -4/Factory | Loaded intel: 240 machine locations 5649 | -4/Factory | Fabricated Adv. Cryofiber Web (x2) 5660 | -4/Factory | Identified exit to Garrison 5662 | -4/Factory | Spotted B-86 Titan 5739 | -4/Factory | Build established: Machinist-Sprinter 5742 | -4/Factory | Fabricated Stasis Canceller (x2) 5783 | -4/Factory | Entered Garrison 5783 | -4/Garrison | Accompanied by 2 allies 5784 | -4/Garrison | Loaded intel: 34 machine locations 5865 | -4/Garrison | Assembled breached garrison interior 5916 | -4/Garrison | Spotted B-86 Titan 5922 | -4/Garrison | Discovered new exit (range 15) 5932 | -4/Garrison | Expanded RIF knowledge: Threat Obfuscation 5948 | -4/Garrison | Entered Research 5948 | -3/Research | Evolved 2 slots: Propulsion x1, Utility x1 5949 | -3/Research | Loaded intel: 123 machine locations 5974 | -3/Research | Spotted B-86 Titan 6033 | -3/Research | Identified exit to Armory 6033 | -3/Research | Identified exit to Quarantine 6064 | -3/Research | Entered Armory 6065 | -3/Armory | Loaded intel: 86 machine locations 6077 | -3/Armory | Spotted B-86 Titan 6214 | -3/Armory | Intercept squad dispatched 6217 | -3/Armory | Spotted Tracker 6218 | -3/Armory | Spotted Tracker 6221 | -3/Armory | Spotted Combat Programmer 6226 | -3/Armory | Core integrity fell below 50% 6232 | -3/Armory | Core integrity fell below 20% 6233 | -3/Armory | Destroyed by P-80 Master with Gamma Rifle Last Messages --------------- 06223_ Diametric Drive temporarily disabled. 06224_ System corrupted: ECM Suite rejected. 06224_ Slammed into Tracker. 06225_ Diametric Drive destroyed. 06226_ Slammed into Tracker. 06227_ Slammed into L-61 Swordsman. 06227_ Penetrated by Slug. 06227_ Slug penetrates L-61 Swordsman. 06228_ Slammed into Y-72 Warden. 06228_ Destabilizing: Core damaged (-13). 06229_ Slammed into L-61 Swordsman. 06229_ Combat Programmer resets L-61 Swordsman, system corruption cleaned. 06230_ Acquired 10 matter. 06230_ Slammed into L-61 Swordsman. 06232_ Chain reaction triggered in Lgt. Antimatter Reactor. 06232_ P-80 Master destroyed. 06232_ L-61 Swordsman destroyed. 06232_ Compression Vault explodes. Map ----- +----------------------------------------------------+ | ???????# #########???""" | | ??????## ?? # ##?????? | | ??????## " "" " # " " ##????"" | | ??????## " "" " # " " ##????"? | | ??????## " "" " + " " ##????"" | | ??????## # " " ##?????? | | ??????## # #####?"" | | ?????### ##/#########?"? | | ?????#######+##### # ##?"" | | ??##### % H / ##??? | | ??## #######+##! " ##??? | | ??## ?? ### ##### ##??? | | ??????? ?## """" ##### ##??? | | ?????## ### """" ##?## ##??? | | ?????## ### """" ##### ##??? | | ????? # ### """" #######+####??? | | ????? # ### # ###??? | | ????? # ####+##+## !!! ##???? | | ?????## #### ## ## !!! ##???? | | ???#### ####+##+## !!! ##???? | | ####### # ## ##???? | | # * # + = ## ##???? | | # ## ###### | | ##############+######### | | | | @ | | % | | ! ex | | ! ;##########x ###/#### | | | = * ########## # | | # Yp %|##???????## # " """ | | # lpY##????????## + T """ | | #! [! p ##????????## # " """ | | ## # ##????????## # | | ######/!%# """????## ###+#### | | ?????# ! + """????## # | | ?????# # """????## # ?????? | | ?????## ## ???????## # ??"""" | | ?????## ##????????## # ??"??" | | ?????## ##????????## + ??"??" | | ?????## ##????????## # "??" | | ??????# #?????????## / """" | | ?????? !?????????## # | | ?????? ?????????##### # | | ?????? ?????????##### # ? | | ??????# ????????????## # ?? | | ??????? ????????????## # | | ??????? ????????????##+######## | | ???????+#????????????## # | | ?????????????????????##""" # | +----------------------------------------------------+ Best States ------------- Heat Dissipation 84 Energy Generation 41 Energy Capacity 375 Matter Stores 300 Matter Capacity 300 Sight Range 16 Robot Scan Range 15 Terrain Scan Density 10 ECM Strength 1 Power Amplification 30 Base Temperature (-) 200 Armor Coverage 150 Propulsion Shielding 66 Evasion (%) 75 Targeting Accuracy 5 Target Analysis 5 Recoil Reduction 1 Offensive Hacking 24 Defensive Hacking 31 Relay Coupler Types 2 Relay Coupler Value 56 Authchip Count 3 Item Schematics ----------------- Adv. Hacking Suite | -7/Factory | Hacked Cld. VTOL Module | -7/Factory | Scanalyzed Gravmag System | -7/Factory | Hacked Imp. Surge Thruster | -6/Factory | Hacked Imp. Cryofiber Web | -6/Factory | Hacked Imp. System Shield | -6/Factory | Hacked Lgt. Antimatter Reactor | -6/Factory | Hacked Combat Drone Bay | -6/Data Miner | Free Lgt. Regenerative Plating | -6/Data Miner | Free Enh. Armored Leg | -6/Data Miner | Free Prc. Energy Filter | -6/Data Miner | Free Imp. KE Penetrator | -6/Data Miner | Free Centrium Wheel | -6/Data Miner | Free Adv. Transmission Jammer | -6/Data Miner | Free Micro-nuke Launcher | -6/Data Miner | Free Imp. Transmission Jammer | -6/Data Miner | Free Nanoactuators | -6/Data Miner | Free Adv. Particle Charger | -6/Data Miner | Free Adv. Point Defense System | -6/Data Miner | Free Stasis Canceller | -5/Factory | Hacked Robot Schematics ------------------ B-48 Gladiator | -7/Factory | Hacked Y-54 Guardian | -6/Data Miner | Free A-15 Conveyor | -6/Data Miner | Free S-27 Virus | -6/Data Miner | Free R-10 Processor | -6/Data Miner | Free M-22 Extractor | -6/Data Miner | Free Fabricated ------------ Adv. Hacking Suite | x1 | -7/Factory | Authchip Imp. Surge Thruster | x2 | -6/Factory | Authchip Imp. Surge Thruster | x2 | -6/Factory | Authchip Imp. Surge Thruster | x2 | -6/Factory | Authchip Adv. Cryofiber Web | x2 | -4/Factory | Preloaded Stasis Canceller | x2 | -4/Factory | Authchip Repaired ---------- Cld. Airjet | 6% | -7/Factory Cld. VTOL Module | 33% | -6/Factory Alien Tech Used ----------------- None Achievements -------------- None Challenges ------------ None Game ------ Seed CoolingCompanionBroadsword Manual? 0 Play Time 02:56:28 Cumulative 279.5 hours Start 2025.06.27 @ 16:10:27 End 2025.06.28 @ 20:48:17 Sessions 5 Manual Loads 0 Difficulty Rogue Special Mode None Game No. 140 Rogue 140 Adventurer 0 Explorer 0 Win Type - Total 17 Types 6/0/5/1/4/1/0/0/0/0 Lore% 83 Gallery% 72 Achievement% 70 Wizard Run 0 Options --------- Layout 1 ASCII 0 Keyboard 0 Movement Numpad Keybinds 0 Fullscreen 1 Font 24/Smallcaps Map View 50x35 Zoom Use 0% Tactical HUD 1 Map Filters NONE Filters NONE Steam 1 RUN: c348b906-1e01-44fc-a501-f4f43572f7c8